[Event "*** Titled Tuesday Blitz"]
[Site "Chess.com"]
[Date "2020.05.12"]
[Round "6"]
[White "korbul"]
[Black "Parkas"]
[Result "1/2-1/2"]
[WhiteElo "2562"]
[BlackElo "2415"]
[TimeControl "180+1"]
[EndTime "11:07:43 PDT"]
[Termination "Game drawn by repetition"]

1. d4 {[%clk 0:03:00.9]} 1... Nf6 {[%clk 0:02:59.7]} 2. c4 {[%clk 0:03:00.7]}
2... e6 {[%clk 0:02:59.1]} 3. Nf3 {[%clk 0:03:00.5]} 3... c5 {[%clk 0:02:57.7]}
4. d5 {[%clk 0:02:59.8]} 4... b5 {[%clk 0:02:57.9]} 5. Bg5 {[%clk 0:02:54.7]}
5... h6 {[%clk 0:02:56.9]} 6. Bxf6 {[%clk 0:02:50.9]} 6... Qxf6 {[%clk
0:02:57.1]} 7. Nc3 {[%clk 0:02:46.6]} 7... b4 {[%clk 0:02:56.1]} 8. Nb5 {[%clk
0:02:43.8]} 8... Kd8 {[%clk 0:02:44.9]} 9. d6 {[%clk 0:02:40.2]} 9... a6 {[%clk
0:02:20.6]} 10. Nc7 {[%clk 0:02:38.5]} 10... Ra7 {[%clk 0:02:20.8]} 11. e4
{[%clk 0:02:36.9]} 11... Qxb2 {[%clk 0:02:00.7]} 12. e5 {[%clk 0:02:00.3]} 12...
Qc3+ {[%clk 0:01:55.7]} 13. Ke2 {[%clk 0:02:00]} 13... Nc6 {[%clk 0:01:53.9]}
14. Rc1 {[%clk 0:01:54.4]} 14... Nd4+ {[%clk 0:01:48]} 15. Nxd4 {[%clk
0:01:53.5]} 15... Qxd4 {[%clk 0:01:48.2]} 16. Qxd4 {[%clk 0:01:53.2]} 16... cxd4
{[%clk 0:01:49.1]} 17. Kd3 {[%clk 0:01:46.5]} 17... g5 {[%clk 0:01:34]} 18. Kxd4
{[%clk 0:01:41.2]} 18... f6 {[%clk 0:01:29.2]} 19. c5 {[%clk 0:01:40.9]} 19...
fxe5+ {[%clk 0:01:22.7]} 20. Ke3 {[%clk 0:01:40.9]} 20... Bb7 {[%clk 0:01:13.1]}
21. f3 {[%clk 0:01:40.3]} 21... h5 {[%clk 0:01:12.5]} 22. Bd3 {[%clk 0:01:39.6]}
22... Bh6 {[%clk 0:01:12.4]} 23. Ke2 {[%clk 0:01:35.2]} 23... g4 {[%clk
0:01:11.2]} 24. Rc2 {[%clk 0:01:32.5]} 24... Rf8 {[%clk 0:01:06.5]} 25. Be4
{[%clk 0:01:27.3]} 25... Bxe4 {[%clk 0:01:03.3]} 26. fxe4 {[%clk 0:01:27]} 26...
Rxc7 {[%clk 0:00:47.2]} 27. dxc7+ {[%clk 0:01:26.3]} 27... Kxc7 {[%clk
0:00:48.1]} 28. Rd1 {[%clk 0:01:06.7]} 28... a5 {[%clk 0:00:39.1]} 29. Rd6
{[%clk 0:01:03.4]} 29... Ra8 {[%clk 0:00:20.5]} 30. Rd3 {[%clk 0:00:57.9]} 30...
h4 {[%clk 0:00:19.6]} 31. Rc4 {[%clk 0:00:55.5]} 31... Rf8 {[%clk 0:00:18.7]}
32. h3 {[%clk 0:00:44.3]} 32... g3 {[%clk 0:00:18]} 33. Rf3 {[%clk 0:00:44]}
33... Rxf3 {[%clk 0:00:18.2]} 34. Kxf3 {[%clk 0:00:43.8]} 34... Bg5 {[%clk
0:00:17.6]} 35. Ke2 {[%clk 0:00:37.8]} 35... Kc6 {[%clk 0:00:17.5]} 36. Kd3
{[%clk 0:00:37.3]} 36... Be7 {[%clk 0:00:13.8]} 37. Rc1 {[%clk 0:00:36.8]} 37...
Bxc5 {[%clk 0:00:13.8]} 38. Rf1 {[%clk 0:00:37.7]} 38... d5 {[%clk 0:00:12.8]}
39. Rf6 {[%clk 0:00:36.2]} 39... Kd6 {[%clk 0:00:11.4]} 40. Rh6 {[%clk
0:00:35.7]} 40... a4 {[%clk 0:00:11.6]} 41. Rxh4 {[%clk 0:00:34.9]} 41... b3
{[%clk 0:00:12.2]} 42. axb3 {[%clk 0:00:34.8]} 42... axb3 {[%clk 0:00:13.1]} 43.
Kc3 {[%clk 0:00:29.1]} 43... d4+ {[%clk 0:00:11.3]} 44. Kxb3 {[%clk 0:00:29.1]}
44... Bb6 {[%clk 0:00:09.6]} 45. Kc4 {[%clk 0:00:28.7]} 45... Ba5 {[%clk
0:00:08.6]} 46. Rg4 {[%clk 0:00:28.6]} 46... Be1 {[%clk 0:00:08.7]} 47. h4
{[%clk 0:00:28.9]} 47... Ke7 {[%clk 0:00:09.3]} 48. h5 {[%clk 0:00:29.1]} 48...
Bd2 {[%clk 0:00:06.9]} 49. Rxg3 {[%clk 0:00:29.1]} 49... Kf6 {[%clk 0:00:06.7]}
50. Rg6+ {[%clk 0:00:28.4]} 50... Kf7 {[%clk 0:00:07.1]} 51. g4 {[%clk
0:00:28.5]} 51... Bf4 {[%clk 0:00:06.3]} 52. Kd3 {[%clk 0:00:27.8]} 52... Be3
{[%clk 0:00:06.3]} 53. Ke2 {[%clk 0:00:24.5]} 53... Bf4 {[%clk 0:00:06.2]} 54.
g5 {[%clk 0:00:23.3]} 54... Bc1 {[%clk 0:00:05.4]} 55. Rf6+ {[%clk 0:00:22.2]}
55... Ke7 {[%clk 0:00:04.9]} 56. Rg6 {[%clk 0:00:18.8]} 56... Kf7 {[%clk
0:00:05.2]} 57. Rf6+ {[%clk 0:00:18.1]} 57... Ke7 {[%clk 0:00:05.5]} 58. Rh6
{[%clk 0:00:19]} 58... Bxg5 {[%clk 0:00:05.4]} 59. Rh7+ {[%clk 0:00:19.2]} 59...
Kf6 {[%clk 0:00:05.4]} 60. Rd7 {[%clk 0:00:16.9]} 60... Bf4 {[%clk 0:00:03.6]}
61. Kf3 {[%clk 0:00:16.5]} 61... Kg5 {[%clk 0:00:02.2]} 62. Rh7 {[%clk 0:00:16]}
62... d3 {[%clk 0:00:01.7]} 63. Rh8 {[%clk 0:00:14.1]} 63... d2 {[%clk
0:00:01.7]} 64. Rd8 {[%clk 0:00:14.6]} 64... Kxh5 {[%clk 0:00:01.7]} 65. Rd3
{[%clk 0:00:13.9]} 65... Kg5 {[%clk 0:00:02.6]} 66. Rd6 {[%clk 0:00:13.2]} 66...
Kf6 {[%clk 0:00:03.5]} 67. Ke2 {[%clk 0:00:12.5]} 67... Ke7 {[%clk 0:00:04.4]}
68. Rd3 {[%clk 0:00:12.5]} 68... Kf6 {[%clk 0:00:05.3]} 69. Rh3 {[%clk
0:00:12.1]} 69... Ke7 {[%clk 0:00:06.2]} 70. Rd3 {[%clk 0:00:11.6]} 70... Kf6
{[%clk 0:00:06.3]} 71. Rh3 {[%clk 0:00:10.8]} 71... Ke7 {[%clk 0:00:06.7]} 72.
Rd3 {[%clk 0:00:10.7]} 1/2-1/2

[Event "*** Titled Tuesday Blitz"]
[Site "Chess.com"]
[Date "2020.05.12"]
[Round "6"]
[White "Filip_Covic"]
[Black "Didici"]
[Result "0-1"]
[WhiteElo "2459"]
[BlackElo "2630"]
[TimeControl "180+1"]
[EndTime "11:07:44 PDT"]
[Termination "Didici won by checkmate"]

1. Nf3 {[%clk 0:03:00.9]} 1... d5 {[%clk 0:02:57.9]} 2. b3 {[%clk 0:03:00.1]}
2... Bg4 {[%clk 0:02:56.7]} 3. Ne5 {[%clk 0:02:58.7]} 3... Bh5 {[%clk
0:02:56.3]} 4. g4 {[%clk 0:02:54.9]} 4... Bg6 {[%clk 0:02:51.8]} 5. h4 {[%clk
0:02:54.4]} 5... f6 {[%clk 0:02:44.9]} 6. Nxg6 {[%clk 0:02:53.7]} 6... hxg6
{[%clk 0:02:45.8]} 7. c4 {[%clk 0:02:49.9]} 7... c6 {[%clk 0:02:41.6]} 8. Qc2
{[%clk 0:02:49.6]} 8... Kf7 {[%clk 0:02:39.2]} 9. h5 {[%clk 0:02:39.5]} 9...
gxh5 {[%clk 0:02:38.6]} 10. gxh5 {[%clk 0:02:39.1]} 10... e6 {[%clk 0:02:36.4]}
11. Qg6+ {[%clk 0:02:33.5]} 11... Ke7 {[%clk 0:02:35.8]} 12. Ba3+ {[%clk
0:02:31.2]} 12... Kd7 {[%clk 0:02:35.7]} 13. Qf7+ {[%clk 0:02:18.7]} 13... Ne7
{[%clk 0:02:32.8]} 14. Bh3 {[%clk 0:02:11.4]} 14... f5 {[%clk 0:02:32.2]} 15.
Nc3 {[%clk 0:01:54]} 15... Qe8 {[%clk 0:02:30.1]} 16. Qxe8+ {[%clk 0:01:53]}
16... Kxe8 {[%clk 0:02:31]} 17. cxd5 {[%clk 0:01:50.6]} 17... cxd5 {[%clk
0:02:31.9]} 18. Nb5 {[%clk 0:01:49]} 18... Kd7 {[%clk 0:02:26]} 19. Nd6 {[%clk
0:01:31.6]} 19... Rxh5 {[%clk 0:01:41.2]} 20. Nxb7 {[%clk 0:01:29.4]} 20... Na6
{[%clk 0:01:40.7]} 21. Rc1 {[%clk 0:01:12.6]} 21... Nc6 {[%clk 0:01:35.7]} 22.
Bxf8 {[%clk 0:00:55.6]} 22... Rxf8 {[%clk 0:01:36.6]} 23. Bg2 {[%clk 0:00:51.2]}
23... Rxh1+ {[%clk 0:01:33.7]} 24. Bxh1 {[%clk 0:00:52.1]} 24... g5 {[%clk
0:01:03.1]} 25. d3 {[%clk 0:00:37.8]} 25... Rb8 {[%clk 0:00:55.3]} 26. Nc5+
{[%clk 0:00:35.8]} 26... Nxc5 {[%clk 0:00:55.1]} 27. Rxc5 {[%clk 0:00:36.7]}
27... Kd6 {[%clk 0:00:43.3]} 28. Rc1 {[%clk 0:00:29.2]} 28... Nb4 {[%clk
0:00:41.9]} 29. a3 {[%clk 0:00:29.2]} 29... Na2 {[%clk 0:00:28.8]} 30. Rb1
{[%clk 0:00:20.6]} 30... Nc3 {[%clk 0:00:26.9]} 31. Rb2 {[%clk 0:00:20.9]} 31...
a5 {[%clk 0:00:20.1]} 32. Kd2 {[%clk 0:00:19.5]} 32... d4 {[%clk 0:00:19.9]} 33.
e3 {[%clk 0:00:16.6]} 33... e5 {[%clk 0:00:19.1]} 34. b4 {[%clk 0:00:12.8]}
34... a4 {[%clk 0:00:16.6]} 35. Rc2 {[%clk 0:00:09.3]} 35... Rh8 {[%clk
0:00:14.2]} 36. Bb7 {[%clk 0:00:05]} 36... Rh2 {[%clk 0:00:12.8]} 37. exd4
{[%clk 0:00:04.8]} 37... exd4 {[%clk 0:00:11.4]} 38. Ke1 {[%clk 0:00:05.1]}
38... g4 {[%clk 0:00:09.4]} 39. Kf1 {[%clk 0:00:04.1]} 39... Rh7 {[%clk
0:00:08.1]} 40. Bg2 {[%clk 0:00:02.7]} 40... Rc7 {[%clk 0:00:06.1]} 41. Rb2
{[%clk 0:00:02.8]} 41... Nb5 {[%clk 0:00:05.7]} 42. Ra2 {[%clk 0:00:03.1]} 42...
Rc3 {[%clk 0:00:05.4]} 43. Ke2 {[%clk 0:00:02.2]} 43... Rxa3 {[%clk 0:00:05.2]}
44. Rxa3 {[%clk 0:00:02.8]} 44... Nxa3 {[%clk 0:00:06.1]} 45. Kd2 {[%clk
0:00:03.5]} 45... Nb5 {[%clk 0:00:06]} 46. Kc2 {[%clk 0:00:03.9]} 46... Nc3
{[%clk 0:00:06.4]} 47. Kb2 {[%clk 0:00:04]} 47... f4 {[%clk 0:00:06.5]} 48. Ka3
{[%clk 0:00:04]} 48... f3 {[%clk 0:00:06.7]} 49. Bf1 {[%clk 0:00:04.3]} 49...
Ke5 {[%clk 0:00:06.7]} 50. b5 {[%clk 0:00:04]} 50... Nxb5+ {[%clk 0:00:06.4]}
51. Kxa4 {[%clk 0:00:04.5]} 51... Nc3+ {[%clk 0:00:06.2]} 52. Kb3 {[%clk
0:00:05]} 52... Ne2 {[%clk 0:00:06.2]} 53. Kc2 {[%clk 0:00:04.4]} 53... Nf4
{[%clk 0:00:06.3]} 54. Kd2 {[%clk 0:00:04.4]} 54... Kd5 {[%clk 0:00:06.4]} 55.
Ke1 {[%clk 0:00:04.4]} 55... Kc5 {[%clk 0:00:06.6]} 56. Kd2 {[%clk 0:00:04.7]}
56... Kb4 {[%clk 0:00:07.5]} 57. Kc2 {[%clk 0:00:04.9]} 57... Ka3 {[%clk
0:00:07.6]} 58. Kd2 {[%clk 0:00:05.2]} 58... Kb2 {[%clk 0:00:08.2]} 59. Ke1
{[%clk 0:00:03.2]} 59... Kc2 {[%clk 0:00:07.8]} 60. Be2 {[%clk 0:00:02.3]} 60...
fxe2 {[%clk 0:00:06.6]} 61. f3 {[%clk 0:00:02]} 61... gxf3 {[%clk 0:00:06.4]}
62. Kf2 {[%clk 0:00:02.4]} 62... Nxd3+ {[%clk 0:00:05.4]} 63. Kxf3 {[%clk
0:00:03.3]} 63... e1=Q {[%clk 0:00:06.3]} 64. Kg4 {[%clk 0:00:03.6]} 64... Qe3
{[%clk 0:00:07.2]} 65. Kf5 {[%clk 0:00:04.5]} 65... Qe5+ {[%clk 0:00:08]} 66.
Kg6 {[%clk 0:00:04]} 66... Qf4 {[%clk 0:00:08.9]} 67. Kg7 {[%clk 0:00:04.2]}
67... Ne5 {[%clk 0:00:08.7]} 68. Kg8 {[%clk 0:00:03.9]} 68... Qf7+ {[%clk
0:00:08.3]} 69. Kh8 {[%clk 0:00:03.9]} 69... Ng6# {[%clk 0:00:09.2]} 0-1

[Event "*** Titled Tuesday Blitz"]
[Site "Chess.com"]
[Date "2020.05.12"]
[Round "6"]
[White "NormWeinstein"]
[Black "nonsopolo1"]
[Result "0-1"]
[WhiteElo "2406"]
[BlackElo "2190"]
[TimeControl "180+1"]
[EndTime "11:07:46 PDT"]
[Termination "nonsopolo1 won on time"]

1. e4 {[%clk 0:03:00.9]} 1... d5 {[%clk 0:02:58.6]} 2. exd5 {[%clk 0:03:00.1]}
2... Qxd5 {[%clk 0:02:58.5]} 3. Nf3 {[%clk 0:03:00.6]} 3... Nf6 {[%clk
0:02:58.4]} 4. Be2 {[%clk 0:03:00.5]} 4... e6 {[%clk 0:02:58]} 5. c4 {[%clk
0:02:58.5]} 5... Qd8 {[%clk 0:02:57.7]} 6. d4 {[%clk 0:02:58.3]} 6... Be7 {[%clk
0:02:57.3]} 7. O-O {[%clk 0:02:58.1]} 7... O-O {[%clk 0:02:57.4]} 8. Nc3 {[%clk
0:02:57.6]} 8... c6 {[%clk 0:02:57.4]} 9. b3 {[%clk 0:02:54.5]} 9... a6 {[%clk
0:02:56.1]} 10. Bb2 {[%clk 0:02:54.1]} 10... b5 {[%clk 0:02:56]} 11. Ne5 {[%clk
0:02:51.6]} 11... c5 {[%clk 0:02:48.9]} 12. dxc5 {[%clk 0:02:45.9]} 12... b4
{[%clk 0:02:48.1]} 13. Na4 {[%clk 0:02:43.2]} 13... Bb7 {[%clk 0:02:35.3]} 14.
Qxd8 {[%clk 0:02:32.7]} 14... Rxd8 {[%clk 0:02:32.2]} 15. Nb6 {[%clk 0:02:27.8]}
15... Ra7 {[%clk 0:02:31.1]} 16. Rfd1 {[%clk 0:02:27.6]} 16... Re8 {[%clk
0:02:01.7]} 17. Bd4 {[%clk 0:02:09.5]} 17... Nc6 {[%clk 0:01:54.4]} 18. Nxc6
{[%clk 0:02:09.3]} 18... Bxc6 {[%clk 0:01:54.4]} 19. h3 {[%clk 0:02:00.2]} 19...
Be4 {[%clk 0:01:36.8]} 20. f3 {[%clk 0:01:52.3]} 20... Bg6 {[%clk 0:01:36.2]}
21. Bd3 {[%clk 0:01:46.2]} 21... Rc7 {[%clk 0:01:32.7]} 22. Bxg6 {[%clk
0:01:43.2]} 22... hxg6 {[%clk 0:01:32.3]} 23. Na4 {[%clk 0:01:27.8]} 23... Nd7
{[%clk 0:01:30]} 24. c6 {[%clk 0:01:21.4]} 24... Nf6 {[%clk 0:01:20.2]} 25. Bc5
{[%clk 0:01:13.2]} 25... Rxc6 {[%clk 0:01:09.8]} 26. Bxe7 {[%clk 0:01:12.2]}
26... Rxe7 {[%clk 0:01:09.8]} 27. a3 {[%clk 0:01:11]} 27... Rb7 {[%clk
0:01:05.3]} 28. Rd3 {[%clk 0:01:07.3]} 28... Nh5 {[%clk 0:00:55.1]} 29. axb4
{[%clk 0:00:59.7]} 29... Rxb4 {[%clk 0:00:54.6]} 30. Rad1 {[%clk 0:00:51.1]}
30... Nf4 {[%clk 0:00:52.4]} 31. Re3 {[%clk 0:00:51]} 31... f6 {[%clk
0:00:49.2]} 32. h4 {[%clk 0:00:49.4]} 32... e5 {[%clk 0:00:47.1]} 33. Kf2 {[%clk
0:00:39.6]} 33... Ne6 {[%clk 0:00:46.6]} 34. Rdd3 {[%clk 0:00:36]} 34... Nd4
{[%clk 0:00:45.1]} 35. f4 {[%clk 0:00:32.6]} 35... Nf5 {[%clk 0:00:38.7]} 36.
Rh3 {[%clk 0:00:27.7]} 36... e4 {[%clk 0:00:36]} 37. Rc3 {[%clk 0:00:26.7]}
37... Rd6 {[%clk 0:00:33.2]} 38. c5 {[%clk 0:00:22.8]} 38... Rd2+ {[%clk
0:00:31.6]} 39. Kg1 {[%clk 0:00:22.5]} 39... e3 {[%clk 0:00:28.3]} 40. c6 {[%clk
0:00:15.7]} 40... e2 {[%clk 0:00:18.4]} 41. Rhe3 {[%clk 0:00:14.9]} 41... Nxe3
{[%clk 0:00:17.8]} 42. Rxe3 {[%clk 0:00:14.9]} 42... Rc2 {[%clk 0:00:08.5]} 43.
Kf2 {[%clk 0:00:12.3]} 43... Rxf4+ {[%clk 0:00:07]} 44. Kg3 {[%clk 0:00:08.3]}
44... Rf1 {[%clk 0:00:06.7]} 45. c7 {[%clk 0:00:04.2]} 45... e1=Q+ {[%clk
0:00:04]} 46. Rxe1 {[%clk 0:00:04.6]} 46... Rxe1 {[%clk 0:00:04.2]} 47. Nb6
{[%clk 0:00:05]} 47... Rxc7 {[%clk 0:00:04]} 48. Nd5 {[%clk 0:00:05.6]} 48...
Rd7 {[%clk 0:00:03.8]} 49. Nf4 {[%clk 0:00:05.4]} 49... Re3+ {[%clk 0:00:03.4]}
50. Kh2 {[%clk 0:00:05.5]} 50... Rxb3 {[%clk 0:00:03.6]} 51. Ne6 {[%clk
0:00:05.6]} 51... Kf7 {[%clk 0:00:03.7]} 52. Nc5 {[%clk 0:00:05.7]} 52... Rdb7
{[%clk 0:00:03.6]} 53. Ne4 {[%clk 0:00:05.7]} 53... Rb2 {[%clk 0:00:03.9]} 54.
Nd6+ {[%clk 0:00:05.8]} 54... Ke7 {[%clk 0:00:04]} 55. Nc4 {[%clk 0:00:06.3]}
55... R7b5 {[%clk 0:00:04]} 56. Ne3 {[%clk 0:00:06.5]} 56... a5 {[%clk
0:00:04.6]} 57. Nc4 {[%clk 0:00:06.2]} 57... a4 {[%clk 0:00:05.5]} 58. Na3
{[%clk 0:00:06.1]} 58... R5b4 {[%clk 0:00:05.7]} 59. h5 {[%clk 0:00:05.1]} 59...
Ra2 {[%clk 0:00:06]} 60. h6 {[%clk 0:00:04.4]} 60... gxh6 {[%clk 0:00:06.3]} 61.
Nb1 {[%clk 0:00:02.2]} 61... Rxb1 {[%clk 0:00:06.4]} 0-1

[Event "*** Titled Tuesday Blitz"]
[Site "Chess.com"]
[Date "2020.05.12"]
[Round "6"]
[White "Shuvalov"]
[Black "Trickov"]
[Result "0-1"]
[WhiteElo "2438"]
[BlackElo "2301"]
[TimeControl "180+1"]
[EndTime "11:07:47 PDT"]
[Termination "Trickov won by resignation"]

1. Nf3 {[%clk 0:03:00.9]} 1... d5 {[%clk 0:02:56.1]} 2. c4 {[%clk 0:02:57.6]}
2... c6 {[%clk 0:02:55]} 3. g3 {[%clk 0:02:57.5]} 3... Nf6 {[%clk 0:02:54.6]} 4.
Bg2 {[%clk 0:02:57.7]} 4... Bf5 {[%clk 0:02:53.5]} 5. cxd5 {[%clk 0:02:56.8]}
5... cxd5 {[%clk 0:02:53]} 6. Qb3 {[%clk 0:02:56.9]} 6... Qb6 {[%clk 0:02:51.5]}
7. Qxb6 {[%clk 0:02:56.7]} 7... axb6 {[%clk 0:02:51.2]} 8. Nc3 {[%clk
0:02:57.4]} 8... Nc6 {[%clk 0:02:49.3]} 9. Nb5 {[%clk 0:02:57]} 9... Rc8 {[%clk
0:02:44.2]} 10. d3 {[%clk 0:02:53.4]} 10... e6 {[%clk 0:02:41]} 11. a3 {[%clk
0:02:51]} 11... h6 {[%clk 0:02:37.7]} 12. O-O {[%clk 0:02:45.1]} 12... Be7
{[%clk 0:02:25]} 13. Bf4 {[%clk 0:02:43.8]} 13... g5 {[%clk 0:02:20]} 14. Bd6
{[%clk 0:02:38.7]} 14... Kd7 {[%clk 0:02:01.9]} 15. Ne5+ {[%clk 0:02:34]} 15...
Nxe5 {[%clk 0:01:58.5]} 16. Bxe5 {[%clk 0:02:34.9]} 16... Rc5 {[%clk 0:01:41.4]}
17. Nd4 {[%clk 0:02:23.6]} 17... Bg6 {[%clk 0:01:36.1]} 18. e4 {[%clk
0:02:17.3]} 18... Rhc8 {[%clk 0:01:33.7]} 19. b4 {[%clk 0:02:09.7]} 19... Rc3
{[%clk 0:01:29.7]} 20. Rfd1 {[%clk 0:02:01.9]} 20... Ng4 {[%clk 0:01:24.8]} 21.
Nf3 {[%clk 0:01:49.9]} 21... Rc2 {[%clk 0:01:16.4]} 22. Bd4 {[%clk 0:01:43.6]}
22... b5 {[%clk 0:01:04.8]} 23. h3 {[%clk 0:01:40.8]} 23... Nf6 {[%clk
0:01:03.9]} 24. Ne5+ {[%clk 0:01:39.8]} 24... Ke8 {[%clk 0:01:04]} 25. Re1
{[%clk 0:01:18.6]} 25... Bh7 {[%clk 0:01:01.4]} 26. exd5 {[%clk 0:00:38.3]}
26... Nxd5 {[%clk 0:01:00.1]} 27. Bf3 {[%clk 0:00:32.5]} 27... Kf8 {[%clk
0:00:52.5]} 28. Bh5 {[%clk 0:00:30.5]} 28... Bg8 {[%clk 0:00:40.3]} 29. Nd7+
{[%clk 0:00:25]} 29... Ke8 {[%clk 0:00:40]} 30. Nc5 {[%clk 0:00:24.9]} 30... b6
{[%clk 0:00:38.3]} 31. Nxe6 {[%clk 0:00:24.3]} 31... Rd2 {[%clk 0:00:31.3]} 32.
Ng7+ {[%clk 0:00:22.7]} 32... Kf8 {[%clk 0:00:31.4]} 33. Nf5 {[%clk 0:00:21.9]}
33... Bf6 {[%clk 0:00:30]} 34. Bf3 {[%clk 0:00:18.3]} 34... Rd8 {[%clk
0:00:28.8]} 35. Bxd5 {[%clk 0:00:17.4]} 35... Rxd5 {[%clk 0:00:28.1]} 36. Bxf6
{[%clk 0:00:17.4]} 36... Rxf5 {[%clk 0:00:27.7]} 37. Be7+ {[%clk 0:00:16.9]}
37... Kg7 {[%clk 0:00:27.4]} 38. Rf1 {[%clk 0:00:14.7]} 38... Rxd3 {[%clk
0:00:25.3]} 39. Rad1 {[%clk 0:00:13.8]} 39... Rfd5 {[%clk 0:00:22]} 40. Rxd3
{[%clk 0:00:13.5]} 40... Rxd3 {[%clk 0:00:22]} 41. Re1 {[%clk 0:00:13.2]} 41...
Bh7 {[%clk 0:00:18.2]} 42. Re5 {[%clk 0:00:12.8]} 42... Rxa3 {[%clk 0:00:14.3]}
43. Rxb5 {[%clk 0:00:11.7]} 43... Be4 {[%clk 0:00:13]} 44. Kf1 {[%clk
0:00:10.3]} 44... Bd3+ {[%clk 0:00:12.6]} 45. Ke1 {[%clk 0:00:10.5]} 45... Bxb5
{[%clk 0:00:12.5]} 46. Bd8 {[%clk 0:00:11.4]} 46... f6 {[%clk 0:00:12.7]} 47.
Bxb6 {[%clk 0:00:10.9]} 47... Rb3 {[%clk 0:00:13.3]} 48. Bc5 {[%clk 0:00:10.9]}
48... Kf7 {[%clk 0:00:13.8]} 49. Kd2 {[%clk 0:00:11.1]} 49... Ke6 {[%clk
0:00:14.2]} 50. Kc2 {[%clk 0:00:11.4]} 50... Rd3 {[%clk 0:00:14.5]} 51. h4
{[%clk 0:00:10.3]} 51... h5 {[%clk 0:00:14.3]} 52. hxg5 {[%clk 0:00:10.1]} 52...
fxg5 {[%clk 0:00:14.2]} 53. Be3 {[%clk 0:00:10.5]} 53... h4 {[%clk 0:00:14]} 54.
gxh4 {[%clk 0:00:10.2]} 54... gxh4 {[%clk 0:00:13.9]} 55. Bf4 {[%clk 0:00:10.6]}
55... h3 {[%clk 0:00:13.7]} 56. Bh2 {[%clk 0:00:10.7]} 56... Kf5 {[%clk
0:00:13.9]} 57. Bc7 {[%clk 0:00:09.7]} 57... Kg4 {[%clk 0:00:14]} 58. Bh2 {[%clk
0:00:09.7]} 58... Kf3 {[%clk 0:00:14.2]} 59. Bg3 {[%clk 0:00:09.6]} 59... Kg2
{[%clk 0:00:14.2]} 60. Bc7 {[%clk 0:00:09.3]} 60... Kxf2 {[%clk 0:00:14.4]} 61.
Bh2 {[%clk 0:00:10]} 61... Kg2 {[%clk 0:00:14.5]} 62. Bc7 {[%clk 0:00:10]} 62...
Rg3 {[%clk 0:00:15.1]} 63. Bxg3 {[%clk 0:00:07.8]} 63... Kxg3 {[%clk 0:00:12.9]}
64. Kc3 {[%clk 0:00:08.7]} 64... h2 {[%clk 0:00:13.1]} 65. Kd4 {[%clk
0:00:09.6]} 65... h1=Q {[%clk 0:00:11.8]} 66. Kc5 {[%clk 0:00:10.5]} 66... Qf1
{[%clk 0:00:11.2]} 0-1